Cogmind - Beta 10.1 @@@ ROGUE MODE // 2020.10.06 @ 16:35:04 Player: Trantor Result: Self-destructed Performance ------------- Evolutions (3) 1500 Regions Visited (7) 1400 Robots Destroyed (128) 640 Value Destroyed (3895) 3895 Prototype IDs (10) 200 Alien Tech Used (0) 0 Bonus (272) 272 TOTAL SCORE: 7907 Bonus ------- High Alert Combat Kills 102 Follower Combat Kills 170 Cogmind --------- Core Integrity 502/700 Matter 184/300 Energy 100/100 System Corruption 4% Temperature Cool (0) Movement Hovering (540) Ox8 Location -7/Factory Parts ------- > --- POWER (2) -------- (None) > --- PROPULSION (4) --- Improved Hover Unit > --- UTILITY (4) ------ High-capacity Storage Unit High-capacity Storage Unit Advanced Targeting Computer > --- WEAPON (3) ------- Improved Assault Rifle > --- INVENTORY (20) --- Nuclear Core Light Treads Improved Treads Improved Hover Unit Improved Heat Sink Large Storage Unit Advanced Sensor Array Advanced Signal Interpreter Weapon Cycler Propulsion Shielding Improved Medium Armor Plating System Shield Improved EM Pulse Cannon Improved EM Pulse Cannon Improved EM Pulse Cannon Improved EM Pulse Cannon Mini Grenade Launcher Katana Peak State ------------ > --- POWER ------------ Improved Deuterium Engine Improved Deuterium Engine > --- PROPULSION ------- Improved Hover Unit Gravmag System Gravmag System Gravmag System > --- UTILITY ---------- High-capacity Storage Unit High-capacity Storage Unit Advanced Targeting Computer Improved Medium Armor Plating > --- WEAPON ----------- Improved Assault Rifle Improved Assault Rifle Enhanced Autogun > --- INVENTORY -------- Nuclear Core Light Treads Improved Treads Improved Hover Unit Improved Heat Sink Large Storage Unit Advanced Sensor Array Advanced Signal Interpreter Weapon Cycler Propulsion Shielding Improved Medium Armor Plating System Shield Improved EM Pulse Cannon Improved EM Pulse Cannon Improved EM Pulse Cannon Improved EM Pulse Cannon Mini Grenade Launcher Katana [Rating: 46] Favorites ----------- Power Improved Deuterium Engine Engine Improved Deuterium Engine Power Core Light Nuclear Core Propulsion Aluminum Leg Treads Improved Treads Leg Aluminum Leg Hover Unit Gravmag System Utility High-capacity Storage Unit Device Sensor Array Storage High-capacity Storage Unit Processor Advanced Targeting Computer Protection Improved Medium Armor Plating Weapon Improved Assault Rifle Energy Gun Beam Rifle Ballistic Gun Improved Assault Rifle Launcher Missile Launcher Slashing Weapon Katana Build | -11 -10 -10 -10 -9 -8 -8 -7 ------- Run | Scr Mat Min Exi Min Mat Sto Fac Slots Evolved 6 | . . . . . 4 . 2 Power 1 | . . . . . . . 1 Propulsion 2 | . . . . . 2 . . Utility 2 | . . . . . 2 . . Weapon 1 | . . . . . . . 1 Parts Attached 129 | 6 29 6 2 . 26 40 20 Power 13 | 1 3 1 . . 2 1 5 Engine 12 | 1 3 1 . . 1 1 5 Core 1 | . . . . . 1 . . Reactor . | . . . . . . . . Propulsion 34 | 2 7 1 . . 7 12 5 Treads 12 | . . . . . . 11 1 Leg 18 | 2 7 1 . . 7 1 . Wheel . | . . . . . . . . Hover 4 | . . . . . . . 4 Flight . | . . . . . . . . Utility 26 | 1 8 . 2 . 8 5 2 Device 1 | . 1 . . . . . . Storage 15 | 1 4 . 2 . 6 2 . Processor 4 | . 2 . . . 1 . 1 Hackware . | . . . . . . . . Protection 6 | . 1 . . . 1 3 1 Artifact . | . . . . . . . . Weapon 56 | 2 11 4 . . 9 22 8 Energy Gun 14 | . 4 1 . . . 9 . Energy Cannon . | . . . . . . . . Ballistic Gun 29 | 2 3 3 . . 8 7 6 Ballistic Cannon . | . . . . . . . . Launcher 11 | . 4 . . . 1 4 2 Special Weapon . | . . . . . . . . Impact Weapon . | . . . . . . . . Slashing Weapon 2 | . . . . . . 2 . Piercing Weapon . | . . . . . . . . Special Melee Weapon . | . . . . . . . . Unidentified Prototypes 3 | . . . . . . 3 . Parts Lost 18 | . 2 4 . . 1 5 6 Power 4 | . 1 1 . . 1 . 1 Propulsion 7 | . . 1 . . . 3 3 Utility 3 | . . . . . . 2 1 Weapon 4 | . 1 2 . . . . 1 Highest Loss Streak 3 | . 1 3 . . 1 2 3 Average Slot Usage (%) 98 | . 99 98 100 100 97 95 98 Engine 12 | . 13 13 14 14 6 8 14 Treads 14 | . . . . . . 32 28 Leg 15 | . 28 27 28 28 35 2 . Storage 18 | . 18 14 24 28 18 18 15 Processor 6 | . 3 14 3 . 8 9 7 Protection 3 | . . . . . 8 6 6 Energy Gun 5 | . 13 20 . . . 9 . Ballistic Gun 18 | . 13 6 28 28 17 7 22 Naked Turns . | . . . . . . . . Heaviest Build 100 | 11 57 43 69 69 69 85 100 Greatest Support 92 | 20 20 20 20 20 40 92 86 Greatest Overweight (x) 27 | 2 2 3 3 3 3 27 8 Average Overweight (x) 1 | . 1 1 2 3 . . . Largest Inventory Capacity 20 | 6 18 12 20 20 20 20 20 Average Capacity 17 | 5 11 12 17 20 16 19 20 Most Carried 20 | 4 17 12 15 18 18 20 20 Average Carried 16 | 2 10 11 13 16 15 18 19 Final Capacity 20 | 6 12 12 20 20 16 20 20 Final Carried 20 | 4 11 11 15 18 16 20 18 Class Distribution -------------------- 39% | Scavenger-Mutant 27% | Hauler-Gunner 17% | Hauler-Mutant 15% | Mutant Dominant Class ---------------- Scavenger-Mutant | -10/Materials Mutant | -10/Mines Scavenger-Mutant | -10/Exiles Scavenger-Mutant | -9/Mines Scavenger-Mutant | -8/Materials Hauler-Mutant | -8/Storage Hauler-Gunner | -7/Factory Resources | -11 -10 -10 -10 -9 -8 -8 -7 ----------- Run | Scr Mat Min Exi Min Mat Sto Fac Matter Collected 3161 | 223 515 60 . 20 402 1040 901 Remotely . | . . . . . . . . Salvage Created 4843 | . 594 65 . . 389 2230 1565 Parts 278 | . 50 8 . . 25 98 97 Haulers Intercepted 12 | . 2 . . . 2 6 2 Recyclers Shooed 2 | . . . . . . 1 1 Parts Field Recycled . | . . . . . . . . Retrieved Matter . | . . . . . . . . Parts Self-Destructed . | . . . . . . . . Prevented . | . . . . . . . . Kills | -11 -10 -10 -10 -9 -8 -8 -7 ------- Run | Scr Mat Min Exi Min Mat Sto Fac Combat Hostiles Destroyed 89 | . 17 6 . . 7 31 28 Guns 81 | . 14 6 . . 6 29 26 AOE 8 | . 3 . . . 1 2 2 Classes Destroyed 14 | . 5 . . . 3 5 1 Worker 11 | . . . . . . 7 4 Builder 4 | . 2 . . . 1 . 1 Hauler 12 | . 2 . . . 2 6 2 Recycler 2 | . . . . . . 2 . Mechanic 2 | . . . . . . 1 1 Operator 4 | . 2 . . . . 2 . Watcher 4 | . . . . . 1 2 1 Swarmer 18 | . 6 6 . . 2 . 4 Grunt 44 | . 11 . . . 3 17 13 Brawler 1 | . . . . . 1 . . Duelist 1 | . . . . . . 1 . Sentry 17 | . . . . . 1 12 4 Hunter 2 | . . . . . . 1 1 Programmer 6 | . . . . . . . 6 Best Kill Streak 7 | . 5 3 . . 4 7 7 Combat Bots Only 4 | . 4 3 . . 4 3 4 Max Kills in Single Turn 3 | . 3 1 . . 1 3 3 Gunslinging . | . . . . . . . . Exploded 2 | . 2 . . . 1 2 2 Melee . | . . . . . . . . Uniques/NPCs Destroyed . | . . . . . . . . Combat | -11 -10 -10 -10 -9 -8 -8 -7 -------- Run | Scr Mat Min Exi Min Mat Sto Fac Damage Taken 4762 | . 713 295 . . 532 1524 1698 Core 548 | . 90 68 . . 48 144 198 Absorbed by Shields . | . . . . . . . . Core Remaining (%) 67 | 100 . . . 36 . 65 . Volleys Fired 327 | . 47 25 . . 37 132 86 Largest 3 | . 2 2 . . 2 2 3 Hottest 121 | . 121 121 . . 55 112 82 Shots Fired 681 | . 83 39 . . 74 261 224 Gun 655 | . 77 39 . . 71 250 218 Cannon . | . . . . . . . . Launcher 26 | . 6 . . . 3 11 6 Special . | . . . . . . . . Kinetic 459 | . 46 . . . 71 124 218 Thermal 196 | . 31 39 . . . 126 . Explosive 26 | . 6 . . . 3 11 6 Electromagnetic . | . . . . . . . . Robot Hit Streak 40 | . 9 2 . . 9 22 40 Robot Miss Streak 6 | . 4 6 . . 2 6 3 Penetration Max . | . . . . . . . . Secondary Targets 12 | . 3 . . . 2 3 4 Max Gunslinging Chain 1 | . 1 . . . 1 1 1 Shots Hit Robots 459 | . 49 14 . . 46 189 161 Core Hits 241 | . 38 6 . . 24 94 79 Critical Hits 2 | . . . . . 1 . 1 Critical Kills 2 | . . . . . 1 . 1 Critical Parts Destroyed . | . . . . . . . . Melee Attacks 2 | . . . . . . 2 . Impact . | . . . . . . . . Slashing 2 | . . . . . . 2 . Piercing . | . . . . . . . . Sneak Attacks . | . . . . . . . . Combat Hostiles . | . . . . . . . . Follow-up Attacks . | . . . . . . . . Damage Inflicted 8972 | . 1022 221 . . 939 3893 2897 Guns 7548 | . 677 221 . . 722 3276 2652 Cannons . | . . . . . . . . Explosions 1418 | . 345 . . . 217 614 242 Melee . | . . . . . . . . Ramming 6 | . . . . . . 3 3 Kinetic 5325 | . 416 . . . 722 1535 2652 Thermal 2223 | . 261 221 . . . 1741 . Explosive 1309 | . 236 . . . 217 614 242 Electromagnetic 109 | . 109 . . . . . . Impact . | . . . . . . . . Slashing . | . . . . . . . . Piercing . | . . . . . . . . Highest Corruption 4 | . . . . . . 1 4 Average Corruption 2 | . . . . . . 1 3 Corruption Purged . | . . . . . . . . Effects 49 | . . . . . . 2 47 Message Errors 10 | . . . . . . 1 9 Matter Fused 13 | . . . . . . . 13 Heat Flow Errors 8 | . . . . . . . 8 Energy Discharges 6 | . . . . . . . 6 Parts Rejected 3 | . . . . . . . 3 Data Loss (minor) 4 | . . . . . . 1 3 Targeting Errors 5 | . . . . . . . 5 Overload Shots . | . . . . . . . . Overflow Damage . | . . . . . . . . Projectiles . | . . . . . . . . Explosions . | . . . . . . . . Melee . | . . . . . . . . Knockbacks . | . . . . . . . . Impact . | . . . . . . . . Kinetic . | . . . . . . . . Secondary . | . . . . . . . . Self-Inflicted Damage 131 | . 28 . . . . 54 49 Shots 7 | . 1 . . . . 3 3 Rammed . | . . . . . . . . Targets Rammed 2 | . . . . . . 1 1 Kicked 1 | . . . . . . 1 . Crushed 1 | . . . . . . . 1 Highest Temperature 335 | . 135 320 . . 29 335 256 Average Temperature 74 | . 48 137 . . 8 73 76 Received Heat Transfer 1665 | . 297 . . . 297 594 477 Effects 5 | . . . . . . . 5 Interference 5 | . . . . . . . 5 Siege Activations . | . . . . . . . . Robots Corrupted . | . . . . . . . . Combat Hostiles . | . . . . . . . . Parts Fried . | . . . . . . . . Impact Corruptions . | . . . . . . . . Robots Melted . | . . . . . . . . Combat Hostiles . | . . . . . . . . Parts Melted 11 | . 1 1 . . . 9 . Heat Transferred 4701 | . 594 555 . . . 3552 . Parts Sabotaged . | . . . . . . . . Parts Stolen . | . . . . . . . . Parts Stripped . | . . . . . . . . Power Chain Reactions . | . . . . . . . . Missiles Intercepted . | . . . . . . . . Alert | -11 -10 -10 -10 -9 -8 -8 -7 ------- Run | Scr Mat Min Exi Min Mat Sto Fac Peak Influence 524 | . 261 82 . 104 209 441 524 Initial 185 | . . 22 . . . 83 185 Average 159 | . 117 25 . 2 99 258 222 Maximum Alert Level 2 | . 1 . . . 1 2 2 Low Security (%) 64 | 100 82 100 . 100 96 31 50 Level 1 28 | . 17 . . . 3 55 37 Level 2 6 | . . . . . . 13 11 Level 3 . | . . . . . . . . Level 4 . | . . . . . . . . Level 5 . | . . . . . . . . High Security . | . . . . . . . . Max Security . | . . . . . . . . Squads Dispatched 20 | . 4 1 . . 3 2 10 Investigation 6 | . 2 1 . . . . 3 Extermination 6 | . . . . . . . 6 Reinforcement 6 | . 2 . . . 1 2 1 Assault . | . . . . . . . . Garrison 2 | . . . . . 2 . . Intercept . | . . . . . . . . Construction Impeded . | . . . . . . . . Haulers Reinforced 1 | . . . . . . . 1 Stealth | -11 -10 -10 -10 -9 -8 -8 -7 --------- Run | Scr Mat Min Exi Min Mat Sto Fac Distress Signals 5 | . 1 . . . 2 2 . Communications Jammed . | . . . . . . . . Distress Signals . | . . . . . . . . Times Spotted 149 | . 33 8 . 3 17 52 36 Peak Tracking Total 5 | . 5 3 . 4 4 5 4 Tactical Retreats 7 | . . 1 . . . 5 1 Traps | -11 -10 -10 -10 -9 -8 -8 -7 ------- Run | Scr Mat Min Exi Min Mat Sto Fac Traps Triggered 7 | . 1 . . . . 4 2 Indirectly . | . . . . . . . . Trap Hack Attempts . | . . . . . . . . Triggered . | . . . . . . . . Disarmed . | . . . . . . . . Reprogrammed . | . . . . . . . . Reused . | . . . . . . . . Traps Extracted . | . . . . . . . . Installed . | . . . . . . . . Triggered . | . . . . . . . . Machines | -11 -10 -10 -10 -9 -8 -8 -7 ---------- Run | Scr Mat Min Exi Min Mat Sto Fac Machines Disabled 6 | . 2 . . . . 2 2 Max in Single Turn 2 | . 2 . . . . 1 1 Machines Sabotaged . | . . . . . . . . Garrisons Compromised . | . . . . . . . . Overloaded Fab Kills . | . . . . . . . . Fab Network Shutdowns . | . . . . . . . . Hacking | -11 -10 -10 -10 -9 -8 -8 -7 --------- Run | Scr Mat Min Exi Min Mat Sto Fac Machines Accessed 35 | . 7 1 4 . 2 9 12 Terminals 20 | . 6 . . . 1 7 6 Fabricators 3 | . . . . . . . 3 Repair Stations 4 | . . . . . . 2 2 Recycling Units 1 | . 1 . . . . . . Scanalyzers 2 | . . . . . 1 . 1 Garrison Access . | . . . . . . . . Total Hacks 122 | . 15 1 49 . 6 26 25 Successful 88 | . 7 1 49 . 5 13 13 Failed 32 | . 7 . . . 1 12 12 Catastrophic 6 | . . . . . . 4 2 Database Lockouts 2 | . 1 . . . . 1 . Manual 25 | . 6 . . . 1 12 6 Terminals 48 | . 14 . . . 3 20 11 Fabricators 8 | . . . . . . . 8 Repair Stations 10 | . . . . . . 6 4 Recycling Units 1 | . 1 . . . . . . Scanalyzers 5 | . . . . . 3 . 2 Garrison Access . | . . . . . . . . Terminal Hacks 70 | . 6 1 49 . 2 9 3 Record 51 | . 1 . 49 . . 1 . Part Schematic 3 | . . . . . . 1 2 Prototype ID Bank 3 | . 1 . . . . 1 1 Open Door 2 | . . 1 . . . 1 . Branch Access Points 2 | . . . . . 1 1 . Unreport Threat 2 | . . . . . . 2 . Transport Status 1 | . 1 . . . . . . Hauler Manifests 4 | . 2 . . . 1 1 . Zone Layout 2 | . 1 . . . . 1 . Fabricator Hacks 4 | . . . . . . . 4 Network Status 1 | . . . . . . . 1 Load Schematic 2 | . . . . . . . 2 Build 1 | . . . . . . . 1 Repair Station Hacks 8 | . . . . . . 4 4 Scan Component 5 | . . . . . . 3 2 Repair 3 | . . . . . . 1 2 Recycling Unit Hacks 1 | . 1 . . . . . . Retrieve Components 1 | . 1 . . . . . . Scanalyzer 5 | . . . . . 3 . 2 Insert Component 3 | . . . . . 2 . 1 Analyze 2 | . . . . . 1 . 1 Garrison Access Hacks . | . . . . . . . . Unauthorized Hacks . | . . . . . . . . Terminals . | . . . . . . . . Fabricators . | . . . . . . . . Repair Stations . | . . . . . . . . Recycling Units . | . . . . . . . . Scanalyzers . | . . . . . . . . Garrison Access . | . . . . . . . . Data Cores Recovered 1 | . . . . . . 1 . Used 1 | . . . . . . 1 . Hacking Detections 28 | . 5 . . . 2 9 12 Full Trace Events 2 | . . . . . . . 2 Feedback Events . | . . . . . . . . Feedback Blocked . | . . . . . . . . Robot Schematics Acquired . | . . . . . . . . Robots Built . | . . . . . . . . Matter . | . . . . . . . . Time . | . . . . . . . . Total Robot Build Rating . | . . . . . . . . Part Schematics Acquired 5 | . . . . . 1 1 3 Parts Built 2 | . . . . . . . 2 Matter 124 | . . . . . . . 124 Time 31 | . . . . . . . 31 Total Part Build Rating 4 | . . . . . . . 4 Parts Repaired 3 | . . . . . . 1 2 Time 99 | . . . . . . 32 67 Parts Recycled . | . . . . . . . . Recycled Matter . | . . . . . . . . Retrieved Matter . | . . . . . . . . Retrieved Components 2 | . 2 . . . . . . Parts Scanalyzed 2 | . . . . . 1 . 1 Part Schematics Acquired 2 | . . . . . 1 . 1 Parts Damaged . | . . . . . . . . Bothacking | -11 -10 -10 -10 -9 -8 -8 -7 ------------ Run | Scr Mat Min Exi Min Mat Sto Fac Used RIF Installer . | . . . . . . . . Robots Hacked . | . . . . . . . . Non-combat . | . . . . . . . . Combat . | . . . . . . . . Robot Hacks Applied . | . . . . . . . . Relay Couplers Released . | . . . . . . . . Robots Rewired . | . . . . . . . . Allies Hacked . | . . . . . . . . Hacks Repelled . | . . . . . . . . Allies | -11 -10 -10 -10 -9 -8 -8 -7 -------- Run | Scr Mat Min Exi Min Mat Sto Fac Total Allies 3 | . . . . 3 . . . Largest Group 3 | . . . . 3 3 . . Highest-Rated Group 40 | . . . . 40 40 . . Highest-Rated Ally 16 | . . . . 16 16 . . Total Orders . | . . . . . . . . Ally Attacks 40 | . . . . 4 36 . . Total Damage 428 | . . . . 61 367 . . Kills 10 | . . . . 4 6 . . Allies Corrupted . | . . . . . . . . Allies Melted . | . . . . . . . . Intel | -11 -10 -10 -10 -9 -8 -8 -7 ------- Run | Scr Mat Min Exi Min Mat Sto Fac Robot Analysis Total . | . . . . . . . . Derelict Logs Recovered 4 | . . 2 . 2 . . . Drone Launches . | . . . . . . . . Drone Recoveries . | . . . . . . . . Exploration | -11 -10 -10 -10 -9 -8 -8 -7 ------------- Run | Scr Mat Min Exi Min Mat Sto Fac Turns Passed 12367 | 69 1704 993 1520 1441 557 2485 3598 Spaces Moved 6204 | 48 944 531 801 684 290 1175 1731 Core 7 | 6 . . . . . 1 . Treads 2792 | . . . . . . 1083 1709 Legs 3383 | 42 944 531 801 684 290 91 . Wheels . | . . . . . . . . Hover 22 | . . . . . . . 22 Flight . | . . . . . . . . Fastest Speed 50 | 50 120 150 150 210 120 120 162 Average Speed 174 | 117 152 171 189 210 139 162 181 Slowest Speed 1400 | 150 180 210 210 210 210 1400 540 Overloaded Moves . | . . . . . . . . Propulsion Burnouts . | . . . . . . . . Robots Hopped . | . . . . . . . . Cave-ins Triggered . | . . . . . . . . Exploration Rate (%) 67 | 4 96 99 93 99 17 96 33 Regions Visited 7 Branch Regions 4 Pre-discovered Areas 1 | . . . 1 . . . . Known Exits Taken 4 | . 1 1 1 . 1 . . Unknown Exits Taken 3 | 1 . . . 1 . 1 . Scrap Searched 2 | . . 2 . . . . . Spaces Dug 126 | . 7 . . . . 74 45 Terrain Destroyed 241 | . 60 . . . 15 116 50 Melee . | . . . . . . . . Projectile . | . . . . . . . . AOE 241 | . 60 . . . 15 116 50 Terrain Rammed . | . . . . . . . . Walls Destroyed . | . . . . . . . . Machines Disabled . | . . . . . . . . Actions | -11 -10 -10 -10 -9 -8 -8 -7 --------- Run | Scr Mat Min Exi Min Mat Sto Fac Total 7177 | 57 1126 573 805 689 384 1500 2043 Wait 335 | . 67 6 . 3 2 104 153 Move 6197 | 47 943 530 800 683 289 1174 1731 Hop . | . . . . . . . . Pick Up 79 | 4 19 3 2 3 9 18 21 Fast Attach 43 | 6 3 3 1 . 5 21 4 Attach 16 | . 3 2 . . 4 3 4 Detach 5 | . . . 1 . . 2 2 Swap 70 | . 23 1 1 . 17 16 12 Drop 97 | . 21 3 . . 21 25 27 Fire 327 | . 47 25 . . 37 132 86 Melee 2 | . . . . . . 2 . Ram . | . . . . . . . . Kick 1 | . . . . . . 1 . Crush 1 | . . . . . . . 1 Escape Stasis 2 | . . . . . . . 2 Rewire 2 | . . . . . . 2 . Trap . | . . . . . . . . Miscellaneous . | . . . . . . . . Route ------- -11/Scrapyard -10/Materials (discovered 4 exits: *Mat x3 / *Min) -10/Mines (discovered 3 exits: *Mat x2 / *Exi) -10/Exiles (discovered 2 exits: *Min x2) -9/Mines (discovered 2 exits: *Mat x2) -8/Materials (discovered 2 exits: *Sto x2) -8/Storage (discovered 2 exits: *Fac / Rec) -7/Factory (discovered 1 exit: [*Fac]) History --------- Turn | Location | Event 2 | -11/Scrapyard | Met Revision 17 13 | -11/Scrapyard | Discovered new exit (range 16) 70 | -11/Scrapyard | Entered Materials 125 | -10/Materials | Discovered new exit (range 16) 195 | -10/Materials | Central database locked down 304 | -10/Materials | Build established: Mutant 473 | -10/Materials | Discovered new exit (range 16) 705 | -10/Materials | Discovered new exit (range 13) 1029 | -10/Materials | Discovered new exit (range 13) 1124 | -10/Materials | Build established: Scavenger-Mutant 1561 | -10/Materials | Identified exit to Materials 1773 | -10/Materials | Identified exit to Mines 1774 | -10/Materials | Entered Mines 2037 | -10/Mines | Core integrity fell below 50% 2151 | -10/Mines | Learned Materials stockpile data 2237 | -10/Mines | Met a Derelict shopkeep closing up shop 2327 | -10/Mines | Build established: Mutant 2385 | -10/Mines | Discovered exit to Materials (range 6) 2538 | -10/Mines | Lost 3 parts (1p1n1w) 2548 | -10/Mines | Discovered exit to Materials (range 14) 2603 | -10/Mines | Learned Materials terminal intel 2755 | -10/Mines | Deemed a non-threat by the Exiles lab entrance 2756 | -10/Mines | Discovered new exit (range 5) 2764 | -10/Mines | Identified exit to Exiles 2767 | -10/Mines | Entered Exiles 2794 | -10/Exiles | Discovered new exit (range 15) 2824 | -10/Exiles | Identified exit to Mines 2825 | -10/Exiles | Build established: Scavenger-Mutant 2859 | -10/Exiles | Met 8R-AWN 2883 | -10/Exiles | Met EX-HEX 2992 | -10/Exiles | Met EX-BIN 3238 | -10/Exiles | Met EX-DEC 3270 | -10/Exiles | Visited The Gauntlet 3689 | -10/Exiles | Learned location of Zion (-7) 3888 | -10/Exiles | Discovered exit to Mines (range 11) 4287 | -10/Exiles | Entered Mines 4359 | -9/Mines | Assisted by bots powering up and referring to "LRC-V3" 4392 | -9/Mines | Learned location of 1 exit from Proximity Caves 4448 | -9/Mines | YI-UF0 nonchalantly dropped a Grenade Launcher on the ground 4696 | -9/Mines | Learned 2 Materials zone layouts 4761 | -9/Mines | Discovered new exit (range 9) 5228 | -9/Mines | Discovered new exit (range 11) 5728 | -9/Mines | Entered Materials 5728 | -8/Materials | Accompanied by 3 allies 5728 | -8/Materials | Evolved 4 slots: Propulsion x2, Utility x2 5731 | -8/Materials | Loaded intel: 12 terminal locations 5990 | -8/Materials | Identified exit to Storage 6150 | -8/Materials | Garrison activated, responded to threat 6285 | -8/Materials | Entered Storage 6547 | -8/Storage | Build established: Mutant 6694 | -8/Storage | Identified exit to Recycling 7111 | -8/Storage | Build established: Hauler-Mutant 7279 | -8/Storage | Central database locked down 8172 | -8/Storage | Repaired Imp. Treads 8448 | -8/Storage | Discovered new exit (range 5) 8770 | -8/Storage | Entered Factory 8770 | -7/Factory | Evolved 2 slots: Power x1, Weapon x1 9066 | -7/Factory | Build established: Hauler-Gunner 9950 | -7/Factory | Repaired Mni. Grenade Launcher 10606 | -7/Factory | Repaired Imp. Assault Rifle 11073 | -7/Factory | Discovered new exit (range 6) 12236 | -7/Factory | Fabricated Imp. Hover Unit (x2) 12329 | -7/Factory | Lost 3 parts (1p1n1u) 12368 | -7/Factory | Self-destructed Last Messages --------------- 12337_ Critical hit. 12337_ Enh. Autogun destroyed. 12341_ R-06 Scavenger collects Gravmag System. 12342_ R-06 Scavenger collects Imp. Assault Rifle. 12343_ K-01 Serf cleans the Fabricator. 12345_ R-06 Scavenger collects Wheel. 12347_ R-06 Scavenger collects Imp. Treads. 12349_ Gravmag System destroyed. 12351_ Destroyed Shock Rifle. 12351_ R-06 Scavenger collects Imp. Deuterium Engine. 12353_ K-01 Serf cleans the Fabricator. 12355_ R-06 Scavenger collects Lgt. Nuclear Core. 12355_ P-60 Hacker destroyed. 12357_ K-01 Serf collects debris. 12357_ R-06 Scavenger collects Lgt. Angular Momentum Engine. 12361_ K-01 Serf collects debris. 12363_ R-06 Scavenger collects Remote Datajack. 12364_ K-01 Serf cleans the Fabricator. 12366_ R-06 Scavenger collects Imp. Heat Sink. 12367_ K-01 Serf cleans the Fabricator. Map ----- +----------------------------------------------------+ | ???? #???????# * """ ### """""" | | ???" """ #???????# """ %#?# """""" | | ???" """ """ #???????# """ #?# """""" | | ??????"" """ #???????# #?# """""" | | ?????? """ #???????# """ """ #?# % | | ?????? "?? ????????# """ """ #?# % " | | ?????? ??? ????????# """ """ #?# "" F | | ????????? ??? ????????# #?# """" | | ??????????????? ?????????# #?# """ | | ?????????????????????????########+####### | | ??????????????????????????????# ! | | ??????????????????????????????# ############## | | ??????????????????????????????# #????????????# | | ??????????????????????######### ###########??# | | ??????????????????? # #??# | | ??????????????????????######### # = !#??? | | ??????????????????????????????# # #### | | ??????????????????????????????# # = # " | | ??????????????????????????????# # # " | | ??????????????????????????????# # [ # " | | ?????????????????????########## + # | | ?????????????????????# ! # # ! # | | ?????????????????????# "" # ########### | | ?????????????????????# """ # # #### | | ?????????????????????#[ F" # # # | | ?????????????????????# @""" # # # T | | ?????????????????????# r"" # # # | | ?????????????????????# k r + / # | | ?????????????????????# % % # # # " | | ?????????????????????# # # # " | | ???????????????????############ # # " | | ?????????????????? ########### " | | ?????????????????? # ##???# " | | ???????????????????? """ # ###?# " | | ?????????????????????""" # # #?# | | ?????????????????????""" # #?#### | | ?????????????????? ######## ###### | | ??????????????????? """ ??????## # | | ??????????????????????"" ???????### """" "" | | ??????????????????????"" ?????????# """ "" | | ?????????????????????? ?????????## # """ "" | | ???????????????????????" ?????????????### """" "" | | ????????????????????????????????????????# | | ????????????????????????????????????????########## | | ?????????????????????????????????????????????????? | | ?????????????????????????????????????????????????? | | ?????????????????????????????????????????????????? | | ?????????????????????????????????????????????????? | | ?????????????????????????????????????????????????? | | ?????????????????????????????????????????????????? | +----------------------------------------------------+ Best States ------------- Heat Dissipation 34 Energy Generation 27 Energy Capacity 480 Matter Stores 300 Matter Capacity 300 Sight Range 16 Robot Scan Range 10 Terrain Scan Density 85 Armor Coverage 225 Evasion (%) 40 Targeting Accuracy 8 Recoil Reduction 4 Item Schematics ----------------- Propulsion Shielding | -8/Materials | Scanalyzed Imp. Hover Unit | -8/Storage | Hacked Imp. EM Pulse Cannon | -7/Factory | Scanalyzed Adv. Signal Interpreter | -7/Factory | Hacked Adv. Sensor Array | -7/Factory | Hacked Robot Schematics ------------------ None Fabricated ------------ Imp. Hover Unit | x2 | -7/Factory Alien Tech Used ----------------- None Achievements -------------- None Challenges ------------ None Game ------ Seed FlightAssaultExpander Manual? 0 Play Time 01:55:54 Cumulative 48.7 hours Start 2020.10.06 @ 13:57:43 End 2020.10.06 @ 16:35:04 Sessions 7 Manual Loads 0 Difficulty Rogue Special Mode None Game No. 20 Rogue 5 Adventurer 15 Explorer 0 Win Type - Total 0 Types 0/0/0/0/0/0/0/0/0 Lore% 32 Gallery% 33 Achievement% 29 Wizard Run 0 Options --------- ASCII 0 Keyboard 1 Movement Vi Keybinds 1 Fullscreen 2 Font 14/SmallcapsGlow Map View 84x54 Tactical HUD 1 Map Filters NONE Filters NONE Steam 1 RUN: 38963ff6-4741-4a67-9a03-22bfb7d9b3a2